Workbook

Sheet 1.재무상태표
A1: 1.재 무 상 태 표
A3: 제 1 기 2018년 12월 31일 현재
A4: 국회미래연구원 | E4: (단위:원)
A5: 과 목 | D5: =LEFT(A3,7) -> 제 1 기
D6: 금 액
A7: 자산
A8: Ⅰ. | B8: 유 동 자 산 | E8: =E9 -> 1935819579
A9: (1) | B9: 당좌자산 | E9: =D10 -> 1935819579
A10: 1 | B10: 현 금 및 현금성자산 | D10: 1935819579
A11: Ⅱ. | B11: 비유동자산 | E11: =E12+E15 -> 207193746
A12: (1) | B12: 유형자산 | E12: =SUM(D13:D14) -> 142108991
A13: 1 | B13: 비품 | D13: 152670920
B14: 감가상각누계액 | D14: -10561929
A15: (2) | B15: 무형자산 | E15: =D16+D19 -> 65084755
A16: 1 | B16: 소프트웨어 | D16: 47418088
A17: 1 | B17: 소프트웨어 | D17: 50505460
B18: 감가상각누계액 | D18: -3087372
A19: 2 | B19: 지적재산권 | D19: 17666667
A20: 2 | B20: 지적재산권 | D20: 20000000
B21: 감가상각누계액 | D21: -2333333
A22: 자산총계 | E22: =E11+E8 -> 2143013325
A23: 부채
A24: Ⅰ. | B24: 유 동 부 채 | E24: =SUM(D25:D26) -> 64305154
A25: 1 | B25: 미지급금 | D25: 48460974
A26: 2 | B26: 예수금 | D26: 15844180
A27: Ⅱ. | B27: 비유동부채 | E27: =SUM(D28:D29) -> 904588
A28: 1 | B28: 퇴직급여충당금 | D28: 68686698
A29: 2 | B29: 퇴직예치금 | D29: -67782110
A30: 부채총계 | E30: =E27+E24 -> 65209742
A31: 자본
A32: Ⅰ. | B32: 자 본 금 | E32: =SUM(D33:D33) -> 1000000
A33: 1 | B33: 기본재산 | D33: 1000000
A34: Ⅱ. | B34: 이익잉여금 | E34: =D35 -> 2076803583
B35: 미처분이익잉여금 | D35: 2076803583
A36: 자본총계 | E36: =E32+E34 -> 2077803583
A37: 부채와자본총계
E40: =E22-E37 -> 2143013325

Sheet 2.손익계산서
A1: 2.손 익 계 산 서
A3: 제 1 기 2018년 05월 21일부터 2018년 12월 31일까지
A4: 국회미래연구원 | E4: (단위:원)
A5: 과목 | D5: ='1.재무상태표'!D5 -> 제 1 기
D6: 금 액
A7: Ⅰ. | B7: 사업수익 | E7: =SUM(D8:D9) -> 3917000000
A8: 1 | B8: 정부출연수익(사업출연금) | D8: 1685000000
A9: 2 | B9: 정부출연수익(기관운영출연금) | D9: 2232000000
A10: Ⅱ. | B10: 사업원가 | E10: =SUM(D11:D11) -> 993736233
A11: 1 | B11: 정부출연사업원가 | D11: 993736233
A12: Ⅲ. | B12: 사업총이익 | E12: =E7-E10 -> 2923263767
A13: Ⅳ. | B13: 운영비 | E13: =D14+D18+D22+D23 -> 850585235
A14: 1 | B14: 인건비 | D14: 702572838
A15: 1) | B15: 급여 | D15: 600091150
A16: 2) | B16: 퇴직급여 | D16: 60112478
A17: 3) | B17: 법정부담금 | D17: 42369210
A18: 2 | B18: 경상운영비 | D18: 130250640
A19: 1) | B19: 기본공과금 | D19: 1467080
A20: 2) | B20: 자산관리유지비 | D20: 826000
A21: 3) | B21: 운영비 | D21: 127957560
A22: 3 | B22: 감가상각비 | D22: 14855967
A23: 4 | B23: 시설구축운영비 | D23: 2905790
A24: Ⅴ. | B24: 사업이익 | E24: =E12-E13 -> 2072678532
A25: Ⅵ. | B25: 사업외수익 | E25: =SUM(D26:D27) -> 4125051
A26: 1 | B26: 이자수익 | D26: 3937481
A27: 2 | B27: 기타수익 | D27: 187570
A28: Ⅶ. | B28: 법인세비용차감전순이익 | E28: =E24+E25 -> 2076803583
A29: Ⅷ. | B29: 법인세비용 | E29: 0 | H29: 감사인수정전
B30: 당기순이익 | E30: =E28-E29 -> 2076803583 | G30: 2076803583 | H30: 2027241087 | I30: =H30-G30 -> -49562496

Sheet 3.현금흐름표
A1: 3.현금흐름표
A3: 제 1 기 2018년 05월 21일부터 2018년 12월 31일까지
A4: 국회미래연구원 | E4: (단위:원)
A5: 과목 | D5: ='1.재무상태표'!D5 -> 제 1 기
D6: 금 액
A7: Ⅰ. | B7: 사업활동으로인한 현금흐름 | E7: =D8+D9-D12+D13 -> 2225778069
A8: (1) | B8: 당기순이익 | D8: ='2.손익계산서'!E30 -> 2076803583
A9: (2) | B9: 현금의 유출이 없는 비용등의 가산 | D9: =SUM(D10:D11) -> 84669332
A10: 1 | B10: 퇴직급여 | D10: ='1.재무상태표'!D28 -> 68686698
A11: 2 | B11: 감가상각비 | D11: =-('1.재무상태표'!D14+'1.재무상태표'!D18+'1.재무상태표'!D21) -> 15982634
A12: (3) | B12: 현금의 유입이 없는 수익등의 차감 | D12: 0
A13: (4) | B13: 사업활동으로 인한 자산부채의 변동 | D13: =SUM(D14:D15) -> 64305154
A14: 1 | B14: 미지급금의 증가(감소) | D14: ='1.재무상태표'!D25 -> 48460974
A15: 2 | B15: 예수금의 증가(감소) | D15: ='1.재무상태표'!D26 -> 15844180
A16: Ⅱ. | B16: 투자활동으로인한 현금흐름 | E16: =D17+D18 -> -223176380
A17: (1) | B17: 투자활동으로 인한 현금유입액 | D17: 0
A18: (2) | B18: 투자활동으로 인한 현금유출액 | D18: =SUM(D19:D21) -> -223176380
A19: 1 | B19: 비품의 취득 | D19: =-'1.재무상태표'!D13 -> -152670920
A20: 2 | B20: 소프트웨어의 취득 | D20: =-'1.재무상태표'!D17 -> -50505460
A21: 3 | B21: 지적재산권의 취득 | D21: =-'1.재무상태표'!D20 -> -20000000
A22: Ⅲ. | B22: 재무활동으로인한 현금흐름 | E22: =D23+D25 -> 1000000
A23: (1) | B23: 재무활동으로 인한 현금유입액 | D23: =SUM(D24) -> 1000000
A24: 1 | B24: 기본재산의 증가 | D24: 1000000
A25: (2) | B25: 재무활동으로 인한 현금유출액 | D25: 0
A26: Ⅳ. | B26: 현금의 증가 | E26: =E7+E16+E22 -> 2003601689
A27: Ⅴ. | B27: 기초의 현금 | E27: 0
A28: Ⅵ. | B28: 기말의 현금 | E28: =E26 -> 2003601689

Sheet 4.자본변동표
A1: 4.자본변동표
A3: 제 1 기 2018년 05월 21일부터 2018년 12월 31일까지
A4: 국회미래연구원 | F4: (단위:원)
A5: 과목 | D5: 자본금 | E5: 이익잉여금 | F5: 총계
A6: Ⅰ. | B6: 2018년5월21일(당기초)
B7: 기본재산 | D7: 1000000 | E7: 0 | F7: =SUM(D7:E7) -> 1000000
B8: 당기순이익 | D8: 0 | E8: =#REF! ->  | F8: =SUM(D8:E8) -> 
A9: Ⅱ. | B9: 2018년12월31일(당기말) | D9: =SUM(D7:D8) -> 1000000 | E9: =SUM(E7:E8) ->  | F9: =SUM(F7:F8) -> 
